fUST/lending_fUST_20250914
["ID","MTS","AMOUNT","RATE_DAILY","PERIOD"]
[385387604,1757814644888,-481.74240617,0.00024354,3]
[385387605,1757814644897,-484.2773497,0.00024354,3]
[385387606,1757814644906,-5268.73390769,0.00024357,2]
[385387607,1757814644917,-752.72382974,0.00024357,2]
[385387608,1757814644928,-1978.3620095,0.00024357,2]
[385387616,1757814646567,-648.14494039,0.000199,2]
[385387617,1757814646576,-648.14494031,0.00021149,2]
[385387618,1757814646585,-648.14494031,0.00022398,2]
[385387619,1757814646594,-648.14494031,0.00023647,2]
[385387620,1757814646604,-480.0,0.00024303,3]
[385387621,1757814646745,-33419.61430525,0.00024357,2]
[385387622,1757814646756,-5199.7796711,0.00024357,2]
[385387623,1757814646768,-9448.02284316,0.00024357,2]
[385387624,1757814646779,-476.52801883,0.00024357,2]
[385387625,1757814897998,303.0,0.00018221,2]
[385387635,1757815479224,161.47726909,0.00018,2]
[385387637,1757815660114,1917.0,0.00030044,50]
[385387638,1757815680390,196.19,0.00015225,2]
[385387639,1757815680896,196.19,0.00015225,2]
[385387640,1757815681170,196.19,0.00015225,2]
[385387702,1757815836885,-426.18,0.00019178,2]
[385387705,1757815837880,-4573.82,0.00019178,2]
[385387706,1757815837890,-501.53911012,0.000192,2]
[385387707,1757815837899,-300.0,0.00019265,2]
[385387708,1757815837908,-300.0,0.00019265,2]
[385387709,1757815837918,-300.0,0.00019265,2]
[385387710,1757815837927,-300.0,0.00019265,2]
[385387711,1757815837936,-1200.0,0.00019265,2]
[385387712,1757815837946,-5000.0,0.00019267,2]
[385387713,1757815837955,-3018.55870138,0.000199,2]
[385387714,1757815837965,-277.558705,0.00020107,2]
[385387715,1757815837974,-4737.61996886,0.00020297,2]
[385387716,1757815837983,-300.0,0.00020297,20]
[385387717,1757815837992,-300.0,0.00020297,20]
[385387718,1757815838002,-300.0,0.00020297,20]
[385387719,1757815838012,-300.0,0.00020297,20]
[385387720,1757815838021,-300.0,0.00020297,20]
[385387721,1757815838032,-300.0,0.00020297,20]
[385387722,1757815838042,-300.0,0.00020297,20]
[385387723,1757815838051,-300.0,0.00020297,20]
[385387724,1757815838061,-300.0,0.00020297,20]
[385387725,1757815838070,-300.0,0.00020297,20]
[385387726,1757815838080,-300.0,0.00020297,20]
[385387727,1757815838090,-300.0,0.00020297,20]
[385387728,1757815838100,-300.0,0.00020297,20]
[385387729,1757815838110,-300.0,0.00020297,20]
[385387730,1757815838120,-300.0,0.00020297,20]
[385387731,1757815838130,-160.0,0.00020713,2]
[385387732,1757815838140,-420.0,0.00020993,2]
[385387733,1757815838150,-3018.55870133,0.00021149,2]
[385387734,1757815838162,-181.09178567,0.00021387,2]
[385387735,1757815838171,-430.92323892,0.00021817,2]
[385387736,1757815838181,-430.92323889,0.00021915,2]
[385387737,1757815838192,-298.77890091,0.00021916,2]
[385387738,1757815838201,-500.0,0.00021916,2]
[385387739,1757815838211,-250.93480568,0.00021916,2]
[385387740,1757815838221,-332.69150369,0.00021916,2]
[385387741,1757815838231,-353.22736564,0.00021916,2]
[385387742,1757815838241,-3394.26062879,0.00021916,2]
[385387743,1757815838251,-3394.26062879,0.00021916,2]
[385387744,1757815838262,-3394.26062879,0.00021916,2]
[385387745,1757815838272,-3394.26062879,0.00021916,2]
[385387746,1757815838282,-3394.26062879,0.00021916,2]
[385387747,1757815838292,-3394.26062879,0.00021916,2]
[385387748,1757815838301,-3394.26062879,0.00021916,2]
[385387749,1757815838311,-3394.26062879,0.00021916,2]
[385387750,1757815838321,-3394.26062879,0.00021916,2]
[385387751,1757815838330,-3394.26062879,0.00021916,2]
[385387752,1757815838339,-3394.26062879,0.00021916,2]
[385387753,1757815838349,-3394.26062879,0.00021916,2]
[385387754,1757815838358,-3394.26062879,0.00021916,2]
[385387755,1757815838368,-3394.26062879,0.00021916,2]
[385387756,1757815838377,-3394.26062879,0.00021916,2]
[385387757,1757815838388,-3394.26062879,0.00021916,2]
[385387758,1757815838411,-3394.26062879,0.00021916,2]
[385387759,1757815838427,-3394.26062879,0.00021916,2]
[385387760,1757815838443,-3394.26062879,0.00021916,2]
[385387761,1757815838464,-630.81,0.00021917,2]
[385387762,1757815838477,-480.0,0.00021917,2]
[385387763,1757815838486,-480.0,0.00021917,2]
[385387764,1757815838497,-480.0,0.00021917,2]
[385387765,1757815838507,-482.33837802,0.00021917,2]
[385387766,1757815838517,-297.45916827,0.00021917,2]
[385387767,1757815838527,-480.0,0.00021917,2]
[385387768,1757815838538,-871.02,0.00021917,2]
[385387769,1757815838547,-480.0,0.00021917,2]
[385387770,1757815838557,-480.0,0.00021917,2]
[385387771,1757815838566,-480.0,0.00021917,2]
[385387772,1757815838575,-480.0,0.00021917,2]
[385387773,1757815838585,-483.24402894,0.00021917,2]
[385387774,1757815838594,-481.24842905,0.00021917,2]
[385387775,1757815838604,-480.0,0.00021917,2]
[385387776,1757815838613,-480.0,0.00021917,2]
[385387777,1757815838623,-1067.16,0.00021917,2]
[385387778,1757815838632,-1200.81,0.00021917,2]
[385387779,1757815838641,-482.81478877,0.00021917,2]
[385387780,1757815838653,-835.02,0.00021917,2]
[385387781,1757815838664,-481.18645373,0.00021917,2]
[385387782,1757815838675,-480.0,0.00021917,2]
[385387783,1757815838686,-480.0,0.00021917,2]
[385387784,1757815838695,-480.0,0.00021917,2]
[385387785,1757815838707,-480.0,0.00021917,2]
[385387786,1757815838716,-483.31383701,0.00021917,2]
[385387787,1757815838726,-480.0,0.00021917,2]
[385387788,1757815838735,-480.0,0.00021917,2]
[385387789,1757815838745,-480.0,0.00021917,2]
[385387790,1757815838754,-480.0,0.00021917,2]
[385387791,1757815838764,-480.0,0.00021917,2]
[385387792,1757815838773,-480.0,0.00021917,2]
[385387793,1757815838783,-480.0,0.00021917,2]
[385387794,1757815838793,-484.24711597,0.00021917,2]
[385387795,1757815838802,-566.42,0.00021917,2]
[385387796,1757815838812,-480.0,0.00021917,2]
[385387797,1757815838821,-559.29243019,0.00021917,2]
[385387798,1757815838831,-480.0,0.00021917,2]
[385387799,1757815838840,-939.09,0.00021917,2]
[385387800,1757815838850,-609.3,0.00021917,2]
[385387801,1757815838861,-480.0,0.00021917,2]
[385387802,1757815838871,-877.83,0.00021917,2]
[385387803,1757815838880,-1300.96,0.00021917,2]
[385387804,1757815838890,-510.02374246,0.00021917,2]
[385387805,1757815838900,-587.92026376,0.00021917,2]
[385387806,1757815838909,-820.89,0.00021917,2]
[385387807,1757815838919,-487.45712317,0.00021917,2]
[385387808,1757815838928,-480.0,0.00021917,2]
[385387809,1757815838937,-482.26582635,0.00021917,2]
[385387810,1757815838947,-484.58774136,0.00021917,2]
[385387811,1757815838956,-271.5136291,0.00021917,2]
[385387812,1757815838972,-208.4863709,0.00021917,2]
[385387813,1757815838982,-487.69224083,0.00021917,2]
[385387814,1757815838991,-649.79,0.00021917,2]
[385387815,1757815839001,-802.85,0.00021917,2]
[385387816,1757815839011,-480.0,0.00021917,2]
[385387817,1757815839020,-480.0,0.00021917,2]
[385387818,1757815839029,-480.0,0.00021917,2]
[385387819,1757815839039,-480.0,0.00021917,2]
[385387820,1757815839049,-1061.34,0.00021917,2]
[385387821,1757815839059,-480.0,0.00021917,2]
[385387822,1757815839069,-485.44618149,0.00021917,2]
[385387823,1757815839078,-481.21167299,0.00021917,2]
[385387824,1757815839088,-537.34,0.00021917,2]
[385387825,1757815839097,-481.94272396,0.00021917,2]
[385387826,1757815839108,-480.0,0.00021917,2]
[385387827,1757815839117,-480.94275275,0.00021917,2]
[385387828,1757815839127,-480.0,0.00021917,2]
[385387829,1757815839136,-505.6,0.00021917,2]
[385387830,1757815839146,-485.74633067,0.00021917,2]
[385387831,1757815839156,-480.0,0.00021917,2]
[385387832,1757815839166,-480.0,0.00021917,2]
[385387833,1757815839175,-480.0,0.00021917,2]
[385387834,1757815839185,-480.0,0.00021917,2]
[385387835,1757815839194,-480.0,0.00021917,2]
[385387836,1757815839203,-482.37888996,0.00021917,2]
[385387837,1757815839212,-481.47539026,0.00021917,2]
[385387838,1757815839222,-1130.92,0.00021917,2]
[385387839,1757815839231,-509.2596669,0.00021917,2]
[385387840,1757815839240,-338.91892348,0.00021917,2]
[385387841,1757815839249,-480.0,0.00021917,2]
[385387843,1757815839259,-487.6718187,0.00021917,2]
[385387844,1757815839269,-678.93,0.00021917,2]
[385387845,1757815839283,-599.60957255,0.00021917,2]
[385387846,1757815839292,-480.0,0.00021917,2]
[385387847,1757815839301,-480.0,0.00021917,2]
[385387848,1757815839311,-752.02,0.00021917,2]
[385387849,1757815839321,-480.0,0.00021917,2]
[385387851,1757815839331,-768.5,0.00021917,2]
[385387853,1757815839340,-481.81012812,0.00021917,2]
[385387855,1757815839352,-481.65869538,0.00021917,2]
[385387857,1757815839361,-481.62439837,0.00021917,2]
[385387858,1757815839371,-481.87724992,0.00021917,2]
[385387859,1757815839379,-500.0,0.00021917,2]
[385387860,1757815839389,-328.96124597,0.00021917,2]
[385387861,1757815839398,-480.0,0.00021917,2]
[385387862,1757815839408,-561.09,0.00021917,2]
[385387863,1757815839417,-480.848675,0.00021917,2]
[385387864,1757815839427,-480.0,0.00021917,2]
[385387865,1757815839436,-484.83791787,0.00021917,2]
[385387866,1757815839445,-661.02,0.00021917,2]
[385387867,1757815839455,-480.0,0.00021917,2]
[385387868,1757815839464,-480.0,0.00021917,2]
[385387869,1757815839474,-480.0,0.00021917,2]
[385387870,1757815839483,-480.0,0.00021917,2]
[385387871,1757815839493,-263.24757464,0.00021917,2]
[385387872,1757815839502,-154.817344,0.00021917,2]
[385387873,1757815839511,-151.0,0.00021917,2]
[385387874,1757815839521,-943.63,0.00021917,2]
[385387875,1757815839533,-480.0,0.00021917,2]
[385387876,1757815839543,-480.0,0.00021917,2]
[385387877,1757815839552,-480.0,0.00021917,2]
[385387878,1757815839561,-480.0,0.00021917,2]
[385387880,1757815839570,-482.90548597,0.00021917,2]
[385387881,1757815839580,-480.0,0.00021917,2]
[385387882,1757815839589,-935.08,0.00021917,2]
[385387883,1757815839598,-244.79871262,0.00021917,2]
[385387884,1757815839611,-14583.87836728,0.00021917,2]
[385387886,1757815839899,-398.6529201,0.00021917,2]
[385387887,1757815839910,-480.0,0.00021917,2]
[385387888,1757815839920,-954.25,0.00021917,2]
[385387889,1757815839930,-481.8382921,0.00021917,2]
[385387890,1757815839939,-481.6582457,0.00021917,2]
[385387891,1757815839948,-1505.99,0.00021917,2]
[385387892,1757815839958,-483.12192469,0.00021917,2]
[385387893,1757815839967,-491.89,0.00021917,2]
[385387894,1757815839976,-151.0,0.00021917,2]
[385387895,1757815839985,-829.94,0.00021917,2]
[385387896,1757815839995,-480.43567872,0.00021917,2]
[385387897,1757815840006,-284.049881,0.00021917,2]
[385387898,1757815840016,-894.21,0.00021917,2]
[385387899,1757815840026,-1191.78,0.00021917,2]
[385387900,1757815840035,-157.0,0.00021917,2]
[385387901,1757815840044,-157.0,0.00021917,2]
[385387902,1757815840053,-157.0,0.00021917,2]
[385387903,1757815840062,-700.43,0.00021917,2]
[385387904,1757815840071,-157.0,0.00021917,2]
[385387905,1757815840080,-157.0,0.00021917,2]
[385387906,1757815840089,-154.771731,0.00021917,2]
[385387907,1757815840099,-157.0,0.00021917,2]
[385387908,1757815840316,-157.0,0.00021917,2]
[385387909,1757815840327,-157.0,0.00021917,2]
[385387910,1757815840338,-157.0,0.00021917,2]
[385387911,1757815840348,-157.0,0.00021917,2]
[385387912,1757815840357,-480.0,0.00021917,2]
[385387913,1757815840367,-3106.63,0.00021917,2]
[385387914,1757815840376,-977.85,0.00021917,2]
[385387915,1757815840385,-480.0,0.00021917,2]
[385387916,1757815840395,-997.77,0.00021917,2]
[385387917,1757815840404,-482.50431771,0.00021917,2]
[385387918,1757815840413,-151.0,0.00021917,2]
[385387919,1757815840422,-151.0,0.00021917,2]
[385387920,1757815840431,-177.984368,0.00021917,2]
[385387921,1757815840441,-749.45,0.00021917,2]
[385387922,1757815840452,-165.191146,0.00021917,2]
[385387923,1757815840460,-480.0,0.00021917,2]
[385387924,1757815840470,-240.23740164,0.00021917,2]
[385387925,1757815840479,-4952.64,0.00021917,2]
[385387926,1757815840489,-480.0,0.00021917,2]
[385387927,1757815840498,-1208.66,0.00021917,2]
[385387928,1757815840507,-480.0,0.00021917,2]
[385387929,1757815840516,-1199.55,0.00021917,2]
[385387930,1757815840526,-480.0,0.00021917,2]
[385387931,1757815840535,-695.54,0.00021917,2]
[385387932,1757815840545,-480.0,0.00021917,2]
[385387933,1757815840555,-736.22,0.00021917,2]
[385387934,1757815840564,-450.68202576,0.00021917,2]
[385387935,1757815840574,-1035.02,0.00021917,2]
[385387936,1757815840583,-480.0,0.00021917,2]
[385387937,1757815840592,-177.00444579,0.00021917,2]
[385387938,1757815840601,-573.05,0.00021917,2]
[385387939,1757815840611,-488.79711215,0.00021917,2]
[385387940,1757815840620,-1512.9,0.00021917,2]
[385387941,1757815840629,-480.0,0.00021917,2]
[385387942,1757815840638,-480.0,0.00021917,2]
[385387943,1757815840647,-480.0,0.00021917,2]
[385387944,1757815840657,-292.52863473,0.00021917,2]
[385387945,1757815840674,-480.0,0.00021917,2]
[385387946,1757815840683,-482.2585896,0.00021917,2]
[385387947,1757815840693,-480.0,0.00021917,2]
[385387948,1757815840702,-3641.7,0.00021917,2]
[385387949,1757815840713,-1458.55,0.00021917,2]
[385387950,1757815840722,-232.63226584,0.00021917,2]
[385387951,1757815840731,-480.0,0.00021917,2]
[385387952,1757815840741,-157.0,0.00021917,2]
[385387953,1757815840750,-157.37271393,0.00021917,2]
[385387954,1757815840759,-189.32,0.00021917,2]
[385387955,1757815840769,-480.0,0.00021917,2]
[385387956,1757815840779,-157.36594855,0.00021917,2]
[385387957,1757815840788,-151.0,0.00021917,2]
[385387958,1757815840797,-157.0,0.00021917,2]
[385387959,1757815840806,-237.832865,0.00021917,2]
[385387960,1757815840815,-534.79,0.00021917,2]
[385387961,1757815840824,-480.0,0.00021917,2]
[385387962,1757815840834,-480.0,0.00021917,2]
[385387963,1757815840843,-480.0,0.00021917,2]
[385387964,1757815840853,-482.88123105,0.00021917,2]
[385387965,1757815840862,-605.45,0.00021917,2]
[385387966,1757815840872,-480.0,0.00021917,2]
[385387967,1757815840881,-480.76355731,0.00021917,2]
[385387968,1757815840890,-784.54,0.00021917,2]
[385387969,1757815840899,-482.19941627,0.00021917,2]
[385387970,1757815840910,-31868.15,0.00021917,2]
[385387971,1757815840919,-480.0,0.00021917,2]
[385387972,1757815840928,-480.0,0.00021917,2]
[385387973,1757815840937,-935.21,0.00021917,2]
[385387974,1757815840947,-480.0,0.00021917,2]
[385387975,1757815840956,-480.0,0.00021917,2]
[385387976,1757815840965,-1266.85,0.00021917,2]
[385387977,1757815840974,-934.53,0.00021917,2]
[385387978,1757815840984,-480.0,0.00021917,2]
[385387979,1757815840993,-480.0,0.00021917,2]
[385387980,1757815841003,-1643.68,0.00021917,2]
[385387981,1757815841012,-991.15,0.00021917,2]
[385387982,1757815841022,-734.43,0.00021917,2]
[385387983,1757815841031,-480.0,0.00021917,2]
[385387984,1757815841040,-1712.79,0.00021917,2]
[385387985,1757815841050,-439.78565983,0.00021917,2]
[385387986,1757815841059,-480.0,0.00021917,2]
[385387987,1757815841068,-480.74721166,0.00021917,2]
[385387988,1757815841077,-489.29,0.00021917,2]
[385387989,1757815841087,-480.0,0.00021917,2]
[385387990,1757815841096,-1939.8,0.00021917,2]
[385387991,1757815841105,-480.90827346,0.00021917,2]
[385387992,1757815841114,-480.76645709,0.00021917,2]
[385387993,1757815841123,-165.121745,0.00021917,2]
[385387994,1757815841133,-480.0,0.00021917,2]
[385387995,1757815841142,-551.70974422,0.00021917,2]
[385387996,1757815841151,-790.29,0.00021917,2]
[385387997,1757815841161,-2381.4,0.00021917,2]
[385387998,1757815841172,-8775.51,0.00021917,2]
[385387999,1757815841182,-696.0,0.00021917,2]
[385388000,1757815841191,-481.06205131,0.00021917,2]
[385388001,1757815841200,-1121.4,0.00021917,2]
[385388002,1757815841209,-3783.61,0.00021917,2]
[385388003,1757815841219,-437.89919359,0.00021917,2]
[385388004,1757815841227,-480.0,0.00021917,2]
[385388005,1757815841371,-480.0,0.00021917,2]
[385388006,1757815841382,-480.0,0.00021917,2]
[385388007,1757815841391,-3362.42,0.00021917,2]
[385388008,1757815841402,-480.0,0.00021917,2]
[385388009,1757815841412,-480.0,0.00021917,2]
[385388010,1757815841421,-480.0,0.00021917,2]
[385388011,1757815841430,-1823.82243823,0.00021917,2]
[385388012,1757815841447,-2127.34756177,0.00021917,2]
[385388013,1757815841457,-664.49,0.00021917,2]
[385388014,1757815841466,-480.0,0.00021917,2]
[385388015,1757815841475,-480.0,0.00021917,2]
[385388016,1757815841484,-480.0,0.00021917,2]
[385388017,1757815841494,-302.58181187,0.00021917,2]
[385388018,1757815841504,-157.45582299,0.00021917,2]
[385388019,1757815841513,-839.0,0.00021917,2]
[385388020,1757815841522,-573.34374642,0.00021917,2]
[385388021,1757815841531,-1549.96,0.00021917,2]
[385388022,1757815841541,-612.95,0.00021917,2]
[385388023,1757815841551,-480.0,0.00021917,2]
[385388024,1757815841560,-8398.31,0.00021917,2]
[385388025,1757815841570,-616.98987977,0.00021917,2]
[385388026,1757815841580,-1067.22,0.00021917,2]
[385388027,1757815841589,-481.65282521,0.00021917,2]
[385388028,1757815841599,-480.0,0.00021917,2]
[385388029,1757815841608,-1068.69,0.00021917,2]
[385388030,1757815841617,-1601.53,0.00021917,2]
[385388031,1757815841626,-480.0,0.00021917,2]
[385388032,1757815841637,-500.0,0.00021917,2]
[385388033,1757815841646,-5581.75,0.00021917,2]
[385388034,1757815841656,-151.0,0.00021917,2]
[385388035,1757815841670,-151.0,0.00021917,2]
[385388036,1757815841680,-480.0,0.00021917,2]
[385388037,1757815841689,-174.351185,0.00021917,2]
[385388038,1757815841698,-480.0,0.00021917,2]
[385388039,1757815841707,-2395.77,0.00021917,2]
[385388040,1757815841717,-480.0,0.00021917,2]
[385388041,1757815841726,-1738.44,0.00021917,2]
[385388042,1757815841735,-616.96,0.00021917,2]
[385388043,1757815841744,-1670.26,0.00021917,2]
[385388044,1757815841754,-4695.78,0.00021917,2]
[385388045,1757815841763,-939.96,0.00021917,2]
[385388046,1757815841773,-829.11,0.00021917,2]
[385388047,1757815841782,-480.0,0.00021917,2]
[385388048,1757815841791,-480.0,0.00021917,2]
[385388049,1757815841801,-482.9,0.00021917,2]
[385388050,1757815841810,-480.0,0.00021917,2]
[385388051,1757815841819,-2670.17,0.00021917,2]
[385388052,1757815841829,-480.0,0.00021917,2]
[385388053,1757815841838,-558.61,0.00021917,2]
[385388054,1757815841847,-1308.78,0.00021917,2]
[385388055,1757815841856,-480.83792946,0.00021917,2]
[385388056,1757815841865,-641.04,0.00021917,2]
[385388057,1757815841875,-480.0,0.00021917,2]
[385388058,1757815841884,-719.69,0.00021917,2]
[385388059,1757815841893,-480.0,0.00021917,2]
[385388060,1757815841902,-480.0,0.00021917,2]
[385388061,1757815841913,-482.03017134,0.00021917,2]
[385388062,1757815841922,-480.0,0.00021917,2]
[385388063,1757815841931,-164.048562,0.00021917,2]
[385388064,1757815841940,-480.0,0.00021917,2]
[385388065,1757815841950,-745.16,0.00021917,2]
[385388066,1757815841959,-3159.12,0.00021917,2]
[385388067,1757815841968,-560.18595589,0.00021917,2]
[385388068,1757815841977,-483.31368157,0.00021917,2]
[385388069,1757815841986,-5529.76,0.00021917,2]
[385388070,1757815841995,-482.05897021,0.00021917,2]
[385388071,1757815842005,-481.88730636,0.00021917,2]
[385388072,1757815842014,-480.0,0.00021917,2]
[385388073,1757815842023,-480.58020631,0.00021917,2]
[385388074,1757815842032,-596.57,0.00021917,2]
[385388075,1757815842041,-3969.95,0.00021917,2]
[385388076,1757815842050,-614.99,0.00021917,2]
[385388077,1757815842059,-480.52515874,0.00021917,2]
[385388078,1757815842069,-482.63796785,0.00021917,2]
[385388079,1757815842078,-1003.25346826,0.00021917,2]
[385388080,1757815842088,-579.54,0.00021917,2]
[385388081,1757815842097,-480.0,0.00021917,2]
[385388082,1757815842106,-480.0,0.00021917,2]
[385388083,1757815842116,-509.68515311,0.00021973,2]
[385388084,1757815842125,-501.40762532,0.00021973,2]
[385388085,1757815842134,-502.12372368,0.00021973,2]
[385388086,1757815842143,-501.10714866,0.00021973,2]
[385388087,1757815842153,-501.12375724,0.00021973,2]
[385388088,1757815842164,-503.63711968,0.00021973,2]
[385388089,1757815842173,-500.0,0.00021973,2]
[385388090,1757815842182,-500.0,0.00021973,2]
[385388091,1757815842191,-500.0,0.00021973,2]
[385388092,1757815842200,-430.92323889,0.00022014,2]
[385388093,1757815842209,-300.0,0.0002211,2]
[385388094,1757815842219,-430.92323889,0.00022112,2]
[385388095,1757815842228,-500.822098,0.00022173,2]
[385388096,1757815842237,-624.52913247,0.00022173,2]
[385388097,1757815842246,-502.15499984,0.00022173,2]
[385388098,1757815842255,-500.0,0.00022173,2]
[385388099,1757815842265,-500.0,0.00022173,2]
[385388100,1757815842275,-500.0,0.00022173,2]
[385388102,1757815842284,-500.0,0.00022173,2]
[385388103,1757815842295,-476.57027394,0.00022191,2]
[385388104,1757815842310,-157.0,0.00022191,2]
[385388105,1757815842320,-157.0,0.00022191,2]
[385388106,1757815842329,-190.30715097,0.00022191,2]
[385388107,1757815842338,-157.0,0.00022191,2]
[385388108,1757815842347,-161.43699635,0.00022191,2]
[385388109,1757815842356,-158.59765881,0.00022191,2]
[385388110,1757815842365,-157.86605767,0.00022191,2]
[385388111,1757815842375,-158.87002926,0.00022191,2]
[385388112,1757815842384,-290.28976701,0.00022191,2]
[385388113,1757815842393,-189.08640924,0.00022191,2]
[385388114,1757815842403,-157.0,0.00022191,2]
[385388116,1757815842413,-157.0,0.00022191,2]
[385388118,1757815842422,-839.0,0.00022191,2]
[385388120,1757815842431,-485.31553429,0.00022191,3]
[385388121,1757815842440,-480.0,0.00022191,3]
[385388122,1757815842449,-480.0,0.00022191,3]
[385388123,1757815842458,-480.0,0.00022191,3]
[385388124,1757815842467,-871.02,0.00022191,3]
[385388125,1757815842476,-480.0,0.00022191,3]
[385388126,1757815842486,-480.0,0.00022191,3]
[385388127,1757815842495,-360.97915909,0.00022191,3]
[385388128,1757815842504,-482.2684478,0.00022191,3]
[385388129,1757815842513,-480.0,0.00022191,3]
[385388130,1757815842523,-480.0,0.00022191,3]
[385388131,1757815842533,-1067.16,0.00022191,3]
[385388132,1757815842542,-1200.81,0.00022191,3]
[385388133,1757815842551,-835.02,0.00022191,3]
[385388134,1757815842560,-480.0,0.00022191,3]
[385388135,1757815842569,-480.0,0.00022191,3]
[385388136,1757815842579,-480.0,0.00022191,3]
[385388137,1757815842593,-480.0,0.00022191,3]
[385388138,1757815842603,-480.0,0.00022191,3]
[385388139,1757815842612,-484.44444115,0.00022191,3]
[385388140,1757815842621,-480.0,0.00022191,3]
[385388141,1757815842630,-480.0,0.00022191,3]
[385388142,1757815842639,-480.0,0.00022191,3]
[385388143,1757815842649,-480.0,0.00022191,3]
[385388144,1757815842661,-480.0,0.00022191,3]
[385388145,1757815842673,-566.42,0.00022191,3]
[385388146,1757815842682,-480.0,0.00022191,3]
[385388147,1757815842691,-165.95670235,0.00022191,3]
[385388148,1757815842700,-939.09,0.00022191,3]
[385388149,1757815842710,-609.3,0.00022191,3]
[385388150,1757815842719,-154.634922,0.00022191,7]
[385388151,1757815842728,-480.0,0.00022191,3]
[385388152,1757815842739,-877.83,0.00022191,3]
[385388153,1757815842748,-1300.96,0.00022191,3]
[385388154,1757815842757,-820.89,0.00022191,3]
[385388155,1757815842766,-506.73221345,0.00022191,3]
[385388156,1757815842775,-333.42107075,0.00022191,3]
[385388157,1757815842784,-649.79,0.00022191,3]
[385388158,1757815842793,-802.85,0.00022191,3]
[385388159,1757815842802,-484.4952999,0.00022191,3]
[385388160,1757815842811,-480.0,0.00022191,3]
[385388161,1757815842819,-480.0,0.00022191,3]
[385388162,1757815842829,-361.74589447,0.00022191,3]
[385388163,1757815842838,-1061.34,0.00022191,3]
[385388164,1757815842847,-480.0,0.00022191,3]
[385388165,1757815842856,-537.34,0.00022191,3]
[385388166,1757815842866,-480.0,0.00022191,3]
[385388167,1757815842875,-443.08272377,0.00022191,3]
[385388168,1757815842884,-505.6,0.00022191,3]
[385388169,1757815842893,-480.0,0.00022191,3]
[385388170,1757815842901,-480.0,0.00022191,3]
[385388171,1757815842910,-480.0,0.00022191,3]
[385388172,1757815842920,-480.0,0.00022191,3]
[385388173,1757815842929,-480.0,0.00022191,3]
[385388174,1757815842939,-1130.92,0.00022191,3]
[385388175,1757815842948,-482.62402328,0.00022191,3]
[385388176,1757815842958,-678.93,0.00022191,3]
[385388177,1757815842968,-481.26233786,0.00022191,3]
[385388178,1757815842978,-752.02,0.00022191,3]
[385388179,1757815842987,-482.81843389,0.00022191,3]
[385388180,1757815842996,-481.54354275,0.00022191,3]
[385388181,1757815843006,-768.5,0.00022191,3]
[385388182,1757815843015,-480.0,0.00022191,3]
[385388183,1757815843024,-561.09,0.00022191,3]
[385388184,1757815843034,-481.77910112,0.00022191,3]
[385388185,1757815843043,-661.02,0.00022191,3]
[385388186,1757815843052,-480.0,0.00022191,3]
[385388187,1757815843061,-480.0,0.00022191,3]
[385388188,1757815843071,-482.14127045,0.00022191,3]
[385388189,1757815843080,-480.0,0.00022191,3]
[385388191,1757815843090,-943.63,0.00022191,3]
[385388193,1757815843099,-448.15286328,0.00022191,3]
[385388194,1757815843108,-480.0,0.00022191,3]
[385388195,1757815843117,-480.0,0.00022191,3]
[385388196,1757815843127,-480.0,0.00022191,3]